[Event "French-ch Youth U18 2022"]
[Site "Agen"]
[Date "2022.04.21"]
[Round "6.6"]
[White "Bellahcene, Sofia"]
[Black "Moracchini, Margaux"]
[Result "1/2-1/2"]
[ECO "B75"]
[WhiteElo "1813"]
[BlackElo "1994"]
[Annotator "TA"]
[PlyCount "92"]
[EventDate "2022.04.17"]
[EventType "swiss"]
[EventCountry "FRA"]
[SourceTitle "playchess.com"]
[Source "ChessBase"]
[SourceQuality "1"]
[TimeControl "5400+30"]

{[%evp 14,92,55,51,47,31,68,44,85,97,106,113,108,0,60,-23,-25,-80,14,-135,-129,-196,-111,-42,-39,-40,-27,-21,-12,-14,-7,-12,-14,-12,-2,-15,-11,-39,-35,-39,-50,-43,-48,-171,-37,-39,0,-51,0,0,0,0,0,0,0,0,0,0,0,0,0,-53,-51,-39,-14,-16,0,0,0,0,0,0,8,8,8,8,15,8,15,8,10]} 1. e4 {[%emt 0:00:02]} c5 {[%emt 0:00:07]} 2. Nf3 {[%emt 0:00:15]} d6 {[%emt 0:00:18]} 3. d4 {[%emt 0:00:18]} cxd4 {[%emt 0:00:23]} 4. Nxd4 {[%emt 0:00:09]} Nf6 {[%emt 0:00:21]} 5. Nc3 {[%emt 0:00:22]} g6 {[%emt 0:00:46]} 6. Be3 {[%emt 0:02:15]} Bg7 {[%emt 0:00:40]} 7. f3 {[%emt 0:00:35]} a6 {[%emt 0:00:50]} 8. Qd2 {[%emt 0:03:14]} h5 {[%emt 0:01:27] B75: Sicilian Dragon: Yugoslav Attack, Miscellaneous.} 9. a4 {[%emt 0:03:08]} b6 {[%emt 0:05:38]} 10. Nd5 {[%emt 0:06:13][%cal Od4b5] [#]} (10. a5) (10. a5 $5 {[%cal Ra5b6]}) 10... Nxd5 $146 {[%emt 0:09:22] White is slightly better.} ({Predecessor:} 10... Nfd7 11. Bg5 Nf6 12. Nxf6+ exf6 13. Bf4 Bb7 14. Bc4 d5 15. exd5 Bxd5 16. Qe2+ Kf8 {1-0 (27) Burkhardt,E-Kauder,H Soemmerda 1950}) 11. exd5 {[%emt 0:00:17]} Bb7 {[%emt 0:11:33]} 12. c4 {[%emt 0:04:23] 0x0.00249b13221edp-1022s more active pieces.} Nd7 {[%emt 0:04:39]} 13. f4 {[%emt 0:08:54]} (13. Bd3 $16) 13... O-O {[%emt 0:04:45]} (13... e5 $11 14. dxe6 Nc5) 14. f5 {[%emt 0:07:47]} (14. Be2 $14) 14... Nc5 {[%emt 0:04:59]} 15. Ra3 {[%emt 0:17:26] [#]} (15. b4 $11 {keeps the balance.}) 15... e5 {[%emt 0:06:26]} ({Black should try} 15... e6 $1 $17 {[%cal Re6d5]} 16. Bg5 Qe8) 16. fxe6 {[%emt 0:09:46]} (16. Nc6 $1 $11 {remains equal.} Bxc6 17. dxc6) 16... fxe6 $17 {[%emt 0:00:17]} 17. Bg5 {[%emt 0:03:27]} (17. Nf3 $17) 17... Bf6 {[%emt 0:03:33]} (17... Qe8 $19 18. Nxe6 Nxe6 19. dxe6 Qxe6+ 20. Be2 Qe4) 18. Bh6 {[%emt 0:05:57]} (18. Nxe6 $17 Nxe6 19. Bxf6 Qxf6 20. dxe6) 18... Re8 $15 {[%emt 0:01:51]} ({Much worse is} 18... exd5 $6 19. Bxf8 Qxf8 20. cxd5 $17) 19. Be2 {[%emt 0:05:17][%cal Od2c2]} exd5 {[%emt 0:12:18] Strongly threatening ...Re4.} 20. O-O {[%emt 0:00:34]} Ne4 {[%emt 0:01:50] Against Rg3} 21. Qd1 {[%emt 0:02:14][%cal Oe2h5]} Qc7 {[%emt 0:10:02]} 22. Raf3 {[%emt 0:04:17]} Bxd4+ {[%emt 0:04:18]} 23. Qxd4 {[%emt 0:00:11][%cal Of3f7]} Qc5 {[%emt 0:00:05]} 24. Qxc5 {[%emt 0:01:02]} Nxc5 {[%emt 0:00:55][%mdl 64] [#] Discovered Attack} 25. Bd1 {[%emt 0:01:59] A strong pair of Bishops.} (25. R3f2 $5 {[%cal Rb2b4]}) 25... dxc4 {[%emt 0:06:18]} ({Much less strong is} 25... Kh7 26. Be3 dxc4 27. Rf7+ Kg8 28. Bxc5 $16) 26. Rf7 {[%emt 0:00:44]} Be4 $1 {[%emt 0:00:53]} 27. g4 {[%emt 0:04:24]} Bd3 {[%emt 0:03:38]} 28. Rg7+ {[%emt 0:02:33]} Kh8 {[%emt 0:00:05]} 29. Rff7 {[%emt 0:00:36] Threatening mate with Rh7+.} Ne6 {[%emt 0:00:30]} 30. Rh7+ {[%emt 0:00:04]} Kg8 {[%emt 0:00:03] ...g5 is the strong threat.} 31. Bf3 {[%emt 0:01:24] Intending Bd5 and mate.} g5 {[%emt 0:03:46]} 32. Rhg7+ {[%emt 0:00:21]} Nxg7 {[%emt 0:00:07]} 33. Rxg7+ {[%emt 0:00:01]} Kh8 {[%emt 0:00:09] aiming for ...Be4.} 34. Bxa8 {[%emt 0:00:06] Black must now prevent Ra7.} Rxa8 {[%emt 0:00:04]} 35. gxh5 $11 {[%emt 0:01:05][%mdl 4096] Endgame KRB-KRB} b5 {[%emt 0:02:20][%cal Oc4c3] Threatens to win with ...c3!} 36. axb5 {[%emt 0:01:00]} axb5 {[%emt 0:00:05]} 37. Rxg5 {[%emt 0:00:09]} (37. Rd7 $11) 37... Kh7 $15 {[%emt 0:00:47]} 38. Bg7 {[%emt 0:00:38]} Ra1+ {[%emt 0:01:10]} (38... b4 $5 {[%cal Rc4c3]} 39. Bd4 Ra1+ 40. Kf2 Rf1+ 41. Ke3 Rh1 $11) 39. Kf2 {[%emt 0:01:20] The position is equal.} Rh1 {[%emt 0:00:33]} 40. Bd4 {[%emt 0:02:06]} Rxh2+ {[%emt 0:00:14]} 41. Kg3 {[%emt 0:00:12]} Re2 {[%emt 0:00:45]} 42. Rxb5 {[%emt 0:00:12]} Kh6 {[%emt 0:01:14][%cal Oc4c3] Hoping for ...c3!} 43. Rd5 {[%emt 0:00:44]} Re6 {[%emt 0:00:53]} 44. Bc3 {[%emt 0:00:16]} Be4 {[%emt 0:00:33]} 45. Bd2+ {[%emt 0:00:25]} Kh7 {[%emt 0:00:19]} 46. Ra5 {[%emt 0:00:20]} Re7 {Against Ra7.  Weighted Error Value: White=0.23 (precise) /Black=0.17 (very precise)} 1/2-1/2

[Event "French-ch Youth U18 2022"]
[Site "Agen"]
[Date "2022.04.21"]
[Round "6.7"]
[White "Randrianarimanana, Alicia"]
[Black "Renaudin, Axelle"]
[Result "1/2-1/2"]
[ECO "D45"]
[WhiteElo "1985"]
[BlackElo "1591"]
[Annotator "TA"]
[PlyCount "140"]
[EventDate "2022.04.17"]
[EventType "swiss"]
[EventCountry "FRA"]
[SourceTitle "playchess.com"]
[Source "ChessBase"]
[SourceQuality "1"]
[TimeControl "5400+30"]

{[%evp 17,140,0,0,0,16,0,0,0,0,4,62,0,0,0,18,11,83,0,126,132,142,79,117,0,225,17,17,18,15,13,26,23,26,0,5,0,7,-16,-20,-51,0,-71,-46,-73,-65,-81,-8,-15,-21,-29,-16,-13,0,-26,0,0,382,19,19,12,11,0,0,0,0,0,8,-23,0,-32,0,-29,0,-8,0,0,0,0,0,0,0,0,0,0,0,0,0,0,0,0,0,0,0,-723,-679,-703,-702,-683,-622,-641,0,0,0,0,0,0,0,0,0,0,0,0,0,0,0,0,0,0,0,-8,0,0,0,0,29986]} 1. d4 {[%emt 0:00:01]} Nf6 {[%emt 0:00:08]} 2. c4 {[%emt 0:00:05]} e6 {[%emt 0:00:05]} 3. Nf3 {[%emt 0:00:06]} d5 {[%emt 0:00:09]} 4. Nc3 {[%emt 0:00:12]} c6 {[%emt 0:00:44]} 5. e3 {[%emt 0:04:24]} Nbd7 {[%emt 0:00:45]} 6. cxd5 {[%emt 0:06:37]} exd5 {[%emt 0:06:41]} 7. Bd3 {[%emt 0:00:07]} Bd6 {[%emt 0:00:32]} 8. O-O {[%emt 0:02:48]} O-O {[%emt 0:00:30]} 9. Qc2 {[%emt 0:03:18]} Re8 {[%emt 0:05:42]} 10. Re1 {[%emt 0:04:10] D45: Semi-Slav: 5 e3.} Qc7 {[%emt 0:05:38]} 11. Bd2 {[%emt 0:02:00]} a6 {[%emt 0:08:36] [#]} 12. e4 $146 {[%emt 0:08:33]} ({Predecessor:} 12. Rac1 h6 13. g3 Re7 14. Bf1 Nb6 15. Nb1 Bg4 16. Nh4 Nbd7 17. Be2 g6 18. Bxg4 Nxg4 {1-0 (43) Cao,K-Nguyen,H Ha Tinh 2000}) 12... dxe4 {[%emt 0:10:38]} 13. Nxe4 {[%emt 0:00:01]} h6 {[%emt 0:02:32]} (13... Nxe4 14. Bxe4 (14. Rxe4 Rxe4 15. Bxe4 Nf6) 14... g6) (13... Nxe4 $11 14. Bxe4 (14. Rxe4 Rxe4 15. Bxe4 Nf6 $11) 14... g6) 14. Ng3 {[%emt 0:07:47]} (14. Nxd6 {feels hotter.} Qxd6 15. Qb3 Nf8 16. Rxe8 Nxe8 17. Bb4) 14... Rxe1+ {[%emt 0:09:12]} 15. Rxe1 {[%emt 0:00:01]} Nf8 {[%emt 0:00:29]} 16. Qc1 {[%emt 0:12:22][%cal Od2h6] Black should prevent Bxh6!} Ne6 {[%emt 0:06:19] [#]} (16... Bg4 $11 {remains equal.}) 17. Nf5 {[%emt 0:32:31]} (17. Bxh6 $1 $16 {[%cal Og3f5]} Qd8 (17... c5 18. dxc5) 18. Be3) 17... Bf4 {[%emt 0:09:59]} (17... Nf4 $11 18. Bxf4 Bxf4) 18. g3 $16 {[%emt 0:03:52]} Bxd2 {[%emt 0:04:04]} 19. Qxd2 {[%emt 0:00:00][%cal Of5h6]} ({Much worse is} 19. Nxd2 $6 Qd8 $11) 19... Qd8 {[%emt 0:17:02] [#]} 20. Bc2 {[%emt 0:07:01] 0x0.001ae9b7ab73dp-1022s more active pieces.} (20. Nxh6+ $1 $16 {[%mdl 512]} gxh6 21. Qxh6) 20... c5 $2 {[%emt 0:06:30] [#]} (20... Nd5 $11) 21. dxc5 $2 {[%emt 0:00:50]} ({White should play} 21. Nxh6+ $1 $18 {[%mdl 512]} gxh6 22. Qxh6 cxd4 23. Ng5) 21... Qxd2 $11 {[%emt 0:00:09]} 22. Nxd2 {[%emt 0:00:00]} Nxc5 {[%emt 0:00:24]} 23. Nd6 {[%emt 0:01:15]} (23. b4 $5 {[%cal Rb4c5]} Bxf5 24. Bxf5 $11) 23... Be6 {[%emt 0:01:13]} 24. b4 {[%emt 0:00:26]} Ncd7 {[%emt 0:00:59]} 25. a3 {[%emt 0:00:27]} b6 {[%emt 0:00:28]} 26. f4 {[%emt 0:00:39][%cal Bf2f4,Bf4f5][%mdl 32]} Kf8 {[%emt 0:01:39]} 27. f5 {[%emt 0:01:54]} Bd5 {[%emt 0:00:09]} 28. Nf1 {[%emt 0:00:14]} Ne8 {[%emt 0:01:28]} (28... Rd8 $15) 29. Ne4 {[%emt 0:01:33]} (29. Ne3 $11 {keeps the balance.}) 29... Rc8 {[%emt 0:00:28]} (29... Ne5 $5 {[%cal Re5f3]} 30. Bd1 f6 $15) 30. Bd3 {[%emt 0:00:57]} Bxe4 {[%emt 0:00:51]} 31. Rxe4 {[%emt 0:00:24] [#]} a5 {[%emt 0:01:04]} (31... b5 $1 $17 32. Rd4 Nef6) 32. bxa5 {[%emt 0:00:16]} bxa5 {[%emt 0:00:03]} 33. Rd4 {[%emt 0:00:18]} Nef6 {[%emt 0:00:17]} 34. Bb5 {[%emt 0:00:54]} Ke7 {[%emt 0:00:28]} 35. a4 {[%emt 0:00:10]} Rc2 {[%emt 0:00:50]} 36. Ne3 {[%emt 0:00:38]} Rc3 {[%emt 0:00:55][%mdl 8192] [#]} (36... Rc1+ $11 37. Kf2 Ne5) 37. Nc4 $2 {[%emt 0:00:12]} ({White must play} 37. Rxd7+ $1 $18 {[%mdl 512]} Nxd7 38. Nd5+ Kd6 39. Nxc3) 37... Rc1+ {[%emt 0:00:20]} 38. Kg2 {[%emt 0:00:14]} Rc2+ {[%emt 0:00:07]} 39. Rd2 {[%emt 0:00:29]} Rxd2+ {[%emt 0:00:27]} 40. Nxd2 {[%emt 0:00:01][%mdl 4096] Endgame KBN-KNN} Nc5 {[%emt 0:00:17] Prevents Nb3.} 41. Nc4 {[%emt 0:00:08]} Nb3 {[%emt 0:00:13]} 42. Ne5 {[%emt 0:00:37]} Ne4 {[%emt 0:01:00]} 43. g4 {[%emt 0:02:08]} Nd6 {[%emt 0:00:52]} 44. Be2 {[%emt 0:00:55]} Nc5 {[%emt 0:00:45]} (44... f6 $5 {[%cal Rf6e5]} 45. Nf3 Ne4 $11) 45. Bd1 {[%emt 0:00:09]} Nde4 {[%emt 0:00:40]} 46. Nc6+ {[%emt 0:00:26]} Kd6 {[%emt 0:00:06]} 47. Nxa5 {[%emt 0:00:06]} Nc3 {[%emt 0:00:12][%csl LRa4,LRd1]} 48. Bc2 {[%emt 0:00:59]} N3xa4 {[%emt 0:00:07]} 49. Kf3 {[%emt 0:00:23]} Nc3 {[%emt 0:00:35]} 50. Nc4+ {[%emt 0:00:11]} Kd5 {[%emt 0:00:19]} 51. Ne3+ {[%emt 0:00:13]} Ke5 {[%emt 0:00:12]} 52. Nc4+ {[%emt 0:00:07]} Kd5 {[%emt 0:00:06]} 53. Nd2 {[%emt 0:00:49]} Nb5 {[%emt 0:01:18] Hoping for ...Nd4+.} 54. Kf4 {[%emt 0:01:00]} Nd4 {[%emt 0:00:44]} 55. Bd3 {[%emt 0:00:09][%mdl 8192]} Nxd3+ $19 {[%emt 0:00:06]} 56. Ke3 {[%emt 0:00:16]} Ne5 {[%emt 0:00:40] ...Nc4+ is the strong threat.} 57. Kf4 {[%emt 0:00:23]} Ne2+ {[%emt 0:01:23]} 58. Ke3 {[%emt 0:00:17]} Nc4+ $2 {[%emt 0:00:34]} (58... Nc1 $19 {Strongly threatening ...Nc4+.} 59. h3 Nc4+ 60. Nxc4 Kxc4) 59. Nxc4 $11 {[%emt 0:00:10] The position is equal.} Kxc4 {[%emt 0:00:09]} 60. Kxe2 {[%emt 0:00:04] K3P-K3P} Kd4 {[%emt 0:00:04] ( -> ...Ke4)} 61. Kf3 {[%emt 0:00:14]} Ke5 {[%emt 0:00:04]} 62. Ke3 {[%emt 0:00:41]} h5 {[%emt 0:01:52]} 63. h3 {[%emt 0:01:22]} hxg4 {[%emt 0:00:31]} (63... h4 $5) 64. hxg4 {[%emt 0:00:01] KPP-KPP} f6 {[%emt 0:00:32]} 65. Kf3 {[%emt 0:00:48]} Kd5 {[%emt 0:00:32]} 66. Kf4 {[%emt 0:00:18]} Kd6 {[%emt 0:00:11]} 67. Kg3 {[%emt 0:02:01]} Ke5 {[%emt 0:00:13]} 68. Kh4 {[%emt 0:00:18]} Kd6 {[%emt 0:00:43]} (68... Kf4 $5) 69. Kh5 {[%emt 0:00:26] Intending Kg6 and mate.} Ke7 $1 {[%emt 0:00:04]} 70. Kg6 {[%emt 0:00:44]} Ke8 $2 {[%mdl 40960] What a bad dream for Black.  Weighted Error Value: White=0.51/Black=0.48. An unexpected result.} (70... Kf8 $11) 1/2-1/2

[Event "French-ch Youth U18 2022"]
[Site "Agen"]
[Date "2022.04.21"]
[Round "6.8"]
[White "Courjal, Pauline"]
[Black "Marchis Mouren, Emma"]
[Result "1-0"]
[ECO "C42"]
[WhiteElo "1976"]
[BlackElo "1350"]
[Annotator "TA"]
[PlyCount "77"]
[EventDate "2022.04.17"]
[EventType "swiss"]
[EventCountry "FRA"]
[SourceTitle "playchess.com"]
[Source "ChessBase"]
[SourceQuality "1"]
[TimeControl "5400+30"]

{[%evp 10,77,30,25,43,39,42,37,37,35,54,39,35,21,25,6,12,6,11,7,9,22,13,15,11,4,8,-37,-43,-38,193,194,371,383,373,375,379,365,396,391,370,325,329,331,318,315,540,526,643,611,745,737,788,777,845,848,979,938,1011,985,29950,1300,29980,985,29986,29987,29987,29988,29988,29989]} 1. e4 {[%emt 0:02:01]} e5 {[%emt 0:00:14]} 2. Nf3 {[%emt 0:00:04]} Nf6 {[%emt 0:00:26]} 3. Nxe5 {[%emt 0:01:17]} d6 {[%emt 0:00:18]} 4. Nf3 {[%emt 0:00:07]} Nxe4 {[%emt 0:00:16]} 5. d4 {[%emt 0:00:16]} d5 {[%emt 0:01:09]} 6. Bd3 {[%emt 0:00:35]} Nf6 {[%emt 0:02:12] 6...Bd6 is setting a new trend. C42: Petroff Defence: 3 Nxe5 and unusual White 3rd moves.} 7. O-O {[%emt 0:01:18]} Be7 {[%emt 0:02:23]} 8. h3 {[%emt 0:02:51]} O-O {[%emt 0:04:21] White is slightly better.} 9. Bf4 {[%emt 0:01:12] [#]} Nh5 $146 {[%emt 0:10:55]} ({Predecessor:} 9... c5 10. dxc5 Bxc5 11. Nbd2 Nc6 12. Nb3 Bb6 13. c3 h6 14. Nfd4 Bc7 15. Bxc7 Qxc7 {1-0 (47) Martinez Alcantara,J (2620)-Davtyan,D (2312) Chess.com INT 2020}) 10. Bh2 {[%emt 0:03:22]} Bd6 {[%emt 0:03:29]} 11. Re1 {[%emt 0:14:20]} Bxh2+ {[%emt 0:03:27]} 12. Nxh2 {[%emt 0:07:07]} Nf4 {[%emt 0:00:35]} 13. Bf1 {[%emt 0:01:07]} Qg5 {[%emt 0:09:05] Hoping for ...Nxh3+.} 14. Kh1 $1 {[%emt 0:00:40]} Bf5 {[%emt 0:03:47]} 15. Nd2 {[%emt 0:02:25]} Nc6 {[%emt 0:05:41]} 16. Ndf3 {[%emt 0:00:48]} Qf6 {[%emt 0:06:36]} 17. Qd2 {[%emt 0:01:46]} Be4 {[%emt 0:01:43][%cal Of4h3]} 18. Ne5 {[%emt 0:17:55]} (18. Ng4 $5 {[%cal Rg4f6]} Qf5 19. Nfh2 $11) 18... Nxe5 {[%emt 0:10:00]} 19. dxe5 {[%emt 0:00:05]} Qf5 {[%emt 0:02:56] Loses the game.} ({Don't play} 19... Qxe5 20. f3 $16) (19... Qg5 $1 $15 {keeps the upper hand.} 20. f3 Bf5) 20. f3 $1 $18 {[%emt 0:01:21]} Nxh3 $2 {[%emt 0:12:45]} (20... Bxc2 21. g4 Qg5) 21. gxh3 {[%emt 0:02:01]} Bxf3+ {[%emt 0:06:04]} 22. Nxf3 {[%emt 0:00:07]} Qxf3+ {[%emt 0:00:21]} 23. Bg2 {[%emt 0:00:03]} Qg3 {[%emt 0:01:00]} 24. Qxd5 {[%emt 0:01:29]} c6 {[%emt 0:01:55]} 25. Qb3 {[%emt 0:00:07]} Qxb3 {[%emt 0:03:32]} 26. axb3 {[%emt 0:00:06]} Rfe8 {[%emt 0:01:54]} 27. Red1 {[%emt 0:01:29] Strongly threatening Rd7.} Re7 {[%emt 0:01:42] [#] Inhibits Rd7.} (27... Kf8 28. Rd7 Re7) 28. Rxa7 $1 {[%emt 0:00:22][%mdl 512]} Rb8 {[%emt 0:03:28] [#]} (28... Rc8 29. Bxc6) 29. Bxc6 $1 {[%emt 0:00:20]} Rxe5 {[%emt 0:00:41]} (29... Kf8 30. Rd7) 30. Rxb7 {[%emt 0:00:06]} Rc8 {[%emt 0:00:32]} 31. Bd5 {[%emt 0:00:37]} Rf5 {[%emt 0:01:20]} 32. Bc4 {[%emt 0:01:17]} h6 {[%emt 0:00:51]} 33. Rdd7 {[%emt 0:00:39]} Rf8 {[%emt 0:00:39]} 34. b4 {[%emt 0:00:15][%cal Od7f7] Threatens to win with Rxf7!} g5 {[%emt 0:00:42] [#]} 35. b5 {[%emt 0:00:16]} (35. Rxf7 $142 $1 R5xf7 36. Rxf7 Rxf7 37. b5 Kf8 38. Bxf7 Kxf7 39. b6 Ke6 40. b7) 35... Kg7 {[%emt 0:00:17] [#]} 36. Bxf7 $1 {[%emt 0:00:40]} R8xf7 {[%emt 0:00:15]} (36... Re5 37. Bc4+) 37. Rxf7+ {[%emt 0:00:08] White mates.} ({Weaker is} 37. b6 Rf1+ 38. Kh2 R1f2+ 39. Kg3 R2f3+ 40. Kg4 R3f4+ 41. Kg3 Rf3+ 42. Kg2 Rf2+ 43. Kg1 Rf1+ 44. Kh2 R1f2+ 45. Kg3 R2f3+ $11) 37... Rxf7 {[%emt 0:00:08]} 38. Rxf7+ {[%emt 0:00:03]} Kxf7 {[%emt 0:00:11]} 39. b6 {[%emt 0:00:05] Weighted Error Value: White=0.09 (flawless) /Black=1.23} 1-0

[Event "French-ch Youth U18 2022"]
[Site "Agen"]
[Date "2022.04.22"]
[Round "7.1"]
[White "Girel, Joseph"]
[Black "Harutyunyan, Safar"]
[Result "1-0"]
[ECO "E15"]
[WhiteElo "2394"]
[BlackElo "2217"]
[Annotator "TA"]
[PlyCount "57"]
[EventDate "2022.04.17"]
[EventType "swiss"]
[EventCountry "FRA"]
[SourceTitle "playchess.com"]
[Source "ChessBase"]
[SourceQuality "1"]
[TimeControl "5400+30"]

{[%evp 9,57,0,4,0,87,0,0,0,0,-9,0,0,0,0,-19,-15,49,39,49,39,58,8,156,150,145,16,281,285,352,287,601,603,581,557,712,706,1331,1087,29993,1965,2070,2026,1711,1555,29962,11682,29995,29996,29997,29998]} 1. d4 {[%emt 0:05:37]} Nf6 {[%emt 0:00:09]} 2. c4 {[%emt 0:00:11]} e6 3. Nf3 {[%emt 0:00:13]} b6 {[%emt 0:00:20]} 4. g3 {[%emt 0:00:41]} Ba6 {[%emt 0:00:24]} 5. Qc2 {[%emt 0:00:47]} c5 {[%emt 0:01:26]} 6. d5 {[%emt 0:00:22] Against Nc6. E15: Queen's Indian: 4 g3 sidelines, 4 g3 Ba6 and 4 g3 Bb7 early deviations.} Bb7 {[%emt 0:24:45]} (6... exd5 $11 7. cxd5 Bb7) 7. Bg2 {[%emt 0:01:02]} ({Better is} 7. e4 $16) 7... exd5 $11 {[%emt 0:00:33]} 8. cxd5 {[%emt 0:00:11] The position is equal.} Nxd5 {[%emt 0:00:18]} 9. O-O {[%emt 0:00:28]} Nc6 {[%emt 0:04:48]} 10. Rd1 {[%emt 0:00:45]} Be7 {[%emt 0:01:54][%cal Oe8g8]} 11. Qf5 {[%emt 0:00:22]} (11. Rxd5 $2 Nb4 12. Qd1 Bxd5 $17) 11... Nf6 {[%emt 0:09:34]} 12. e4 O-O {[%emt 0:08:34]} ({Black should play} 12... g6 $11 13. Qf4 O-O) 13. e5 $1 $14 {[%emt 0:02:10][%mdl 64] Hoping for Nc3. Deflection} Ne8 {[%emt 0:01:14]} (13... g6 14. Qh3 $16) 14. Rxd7 {[%emt 0:03:39]} Qc8 {[%emt 0:05:31] [#]} 15. e6 $146 {[%emt 0:07:34]} ({White should try} 15. Nc3 $14 Nc7 16. Qg4) ({Predecessor:} 15. Nc3 Nb8 16. e6 Nd6 17. Rxd6 Bxd6 18. Ng5 g6 19. exf7+ Kg7 20. Ne6+ {1-0 (20) Torres,J (2267)-Handler,L (2327) Caldas Novas 2011}) 15... Nd4 {[%emt 0:18:27]} 16. Nxd4 $16 {[%emt 0:07:20]} cxd4 {[%emt 0:01:47]} 17. Bg5 $40 {[%emt 0:30:23][%mdl 128] White is up to no good. Chess con chili.} (17. exf7+ $2 Rxf7 18. Qb5 Bxg2 19. Kxg2 a6 $19) (17. Nd2 $16 Bxg2 18. Kxg2) 17... Bxg5 $4 {[%emt 0:05:01][%mdl 8192] A mistake that costs the game.} (17... Nd6 $1 $11 18. Bxb7 Nxf5 19. Bxc8 Raxc8 20. Bxe7 Rc1+ 21. Kg2 Nxe7) 18. Bxb7 $18 {[%emt 0:03:05]} ({Inferior is} 18. Qxg5 Bxg2 19. exf7+ Rxf7 20. Rxf7 Kxf7 $11) (18. exf7+ Kh8 19. Bxb7 Nd6 20. Qxg5 (20. Bxc8 Nxf5 21. Ba6 Rad8 $14) 20... Qxd7 21. Bxa8 Nxf7 $16) 18... Qc1+ {[%emt 0:00:25]} 19. Kg2 {[%emt 0:00:01] Active counter play!} fxe6 {[%emt 0:09:44]} (19... g6 20. exf7+ Kh8 21. Qe5+ (21. fxe8=Q Raxe8 22. Qd5 Qxb2 $11) (21. fxe8=R gxf5 22. Rxa8 Rxa8 $15) 21... Bf6) 20. Qxe6+ {[%emt 0:00:19]} Kh8 {[%emt 0:00:01][%cal Og5e3] aiming for ...Be3!} 21. Bxa8 {[%emt 0:01:04][%cal Ob1c3] Strongly threatening Nc3!} Qxb2 {[%emt 0:00:06] [#]} 22. Rf7 {[%emt 0:00:24][%cal Rf7f8][%mdl 512]} Rg8 {[%emt 0:00:15] [#]} (22... Qb4 23. Bc6) 23. Bd5 $1 {[%emt 0:01:26][%cal Of7g7][%mdl 512]} Qxa1 {[%emt 0:05:38] [#]} (23... Qb4 24. Rxg7) 24. Rf5 {[%emt 0:03:43]} Nf6 {[%emt 0:00:06] [#]} 25. Rxf6 $1 {[%emt 0:00:06][%csl Gd5][%cal Re6g8][%mdl 512]} Rd8 {[%emt 0:00:04]} 26. Rf5 {[%emt 0:00:12][%cal Oe6d6] White threatens Qd6! and mate.} Qxb1 {[%emt 0:01:45]} 27. Rxg5 {[%emt 0:00:07] Qe7 would kill now.} Qb4 {[%emt 0:00:29] [#]} 28. Rxg7 $3 {[%emt 0:01:31][%mdl 512]} Kxg7 {[%emt 0:00:06]} (28... Qf8 29. Rg8+) 29. Qf7+ {[%emt 0:00:03] Weighted Error Value: White=0.20 (precise) /Black=1.39} 1-0